[Event "*** SCC Grand Prix: Titled Tuesday Blitz"]
[Site "Chess.com"]
[Date "2020.06.23"]
[Round "10"]
[White "Evgeny81"]
[Black "Indianlad"]
[Result "0-1"]
[WhiteElo "2798"]
[BlackElo "2954"]
[TimeControl "180+1"]
[EndTime "11:58:14 PDT"]
[Termination "Indianlad won by checkmate"]

1. e4 {[%clk 0:03:00.9]} 1... c5 {[%clk 0:02:57.2]} 2. d4 {[%clk 0:03:00.6]}
2... cxd4 {[%clk 0:02:57.3]} 3. c3 {[%clk 0:03:01.1]} 3... d3 {[%clk 0:02:57.8]}
4. Bxd3 {[%clk 0:03:00.8]} 4... Nc6 {[%clk 0:02:58.5]} 5. f4 {[%clk 0:03:00.9]}
5... e6 {[%clk 0:02:54.4]} 6. Nf3 {[%clk 0:03:01.1]} 6... Bc5 {[%clk 0:02:54.7]}
7. Qe2 {[%clk 0:03:00.1]} 7... Nf6 {[%clk 0:02:51.4]} 8. Be3 {[%clk 0:02:58.9]}
8... Qb6 {[%clk 0:02:51.4]} 9. Bxc5 {[%clk 0:02:56.9]} 9... Qxc5 {[%clk
0:02:52.3]} 10. Qf2 {[%clk 0:02:54.8]} 10... Qxf2+ {[%clk 0:02:50.7]} 11. Kxf2
{[%clk 0:02:55.7]} 11... d5 {[%clk 0:02:37.4]} 12. e5 {[%clk 0:02:53.4]} 12...
Nd7 {[%clk 0:02:37]} 13. Nbd2 {[%clk 0:02:48.7]} 13... O-O {[%clk 0:02:37.4]}
14. Rhe1 {[%clk 0:02:45.3]} 14... f6 {[%clk 0:02:30.7]} 15. exf6 {[%clk
0:02:45.2]} 15... Rxf6 {[%clk 0:02:30.9]} 16. Bc2 {[%clk 0:02:13.6]} 16... Rxf4
{[%clk 0:02:02.5]} 17. Rxe6 {[%clk 0:02:11.8]} 17... Nf6 {[%clk 0:02:03.2]} 18.
Ree1 {[%clk 0:02:01.7]} 18... Bd7 {[%clk 0:01:51]} 19. Kg1 {[%clk 0:01:52.2]}
19... Bg4 {[%clk 0:01:25.2]} 20. h3 {[%clk 0:01:42.5]} 20... Bh5 {[%clk
0:01:22.5]} 21. Ng5 {[%clk 0:01:35.7]} 21... Bg6 {[%clk 0:00:47.2]} 22. g3
{[%clk 0:01:28.9]} 22... Bxc2 {[%clk 0:00:47]} 23. gxf4 {[%clk 0:01:28.8]} 23...
Bf5 {[%clk 0:00:47.9]} 24. Kh2 {[%clk 0:01:23.2]} 24... h6 {[%clk 0:00:47.3]}
25. Ngf3 {[%clk 0:01:22]} 25... Kf7 {[%clk 0:00:45.8]} 26. Ne5+ {[%clk
0:01:10.9]} 26... Kf8 {[%clk 0:00:46.3]} 27. Rad1 {[%clk 0:01:04.4]} 27... Rc8
{[%clk 0:00:45]} 28. Nb3 {[%clk 0:01:01.1]} 28... a6 {[%clk 0:00:39.5]} 29. Nd4
{[%clk 0:00:38.7]} 29... Nxd4 {[%clk 0:00:40.1]} 30. Rxd4 {[%clk 0:00:39.1]}
30... Be4 {[%clk 0:00:40.1]} 31. Rb4 {[%clk 0:00:28.4]} 31... Rc7 {[%clk
0:00:40.2]} 32. Rb6 {[%clk 0:00:27]} 32... d4 {[%clk 0:00:35.5]} 33. c4 {[%clk
0:00:17.6]} 33... d3 {[%clk 0:00:35.7]} 34. Rd6 {[%clk 0:00:17.6]} 34... Bf5
{[%clk 0:00:34.9]} 35. b3 {[%clk 0:00:15.8]} 35... b5 {[%clk 0:00:34.8]} 36.
Nxd3 {[%clk 0:00:12.3]} 36... bxc4 {[%clk 0:00:34.9]} 37. bxc4 {[%clk
0:00:12.2]} 37... Bxd3 {[%clk 0:00:26.5]} 38. Rxd3 {[%clk 0:00:10.8]} 38... Rxc4
{[%clk 0:00:27.3]} 39. Ra3 {[%clk 0:00:05.5]} 39... Rxf4 {[%clk 0:00:26.7]} 40.
Rxa6 {[%clk 0:00:04.9]} 40... Rf2+ {[%clk 0:00:27]} 41. Kg3 {[%clk 0:00:05.1]}
41... Rb2 {[%clk 0:00:27.5]} 42. Rf1 {[%clk 0:00:05.1]} 42... Kf7 {[%clk
0:00:27.8]} 43. Rf2 {[%clk 0:00:04.1]} 43... Rb5 {[%clk 0:00:26]} 44. Ra7+
{[%clk 0:00:03.9]} 44... Kg6 {[%clk 0:00:26]} 45. Kg2 {[%clk 0:00:04.5]} 45...
h5 {[%clk 0:00:26.2]} 46. Re2 {[%clk 0:00:04.8]} 46... Nd5 {[%clk 0:00:25.3]}
47. Kh2 {[%clk 0:00:04.3]} 47... Nf4 {[%clk 0:00:25.3]} 48. Rf2 {[%clk
0:00:04.4]} 48... Rb4 {[%clk 0:00:25.8]} 49. a3 {[%clk 0:00:04]} 49... Rc4
{[%clk 0:00:26.1]} 50. a4 {[%clk 0:00:04]} 50... Kf6 {[%clk 0:00:17.4]} 51. Ra6+
{[%clk 0:00:03.4]} 51... Kf5 {[%clk 0:00:17.4]} 52. Ra8 {[%clk 0:00:03]} 52...
g5 {[%clk 0:00:17.6]} 53. a5 {[%clk 0:00:03.1]} 53... Rc3 {[%clk 0:00:18.1]} 54.
h4 {[%clk 0:00:01.8]} 54... Rh3+ {[%clk 0:00:17.7]} 55. Kg1 {[%clk 0:00:02.1]}
55... Rxh4 {[%clk 0:00:17.8]} 56. a6 {[%clk 0:00:02.8]} 56... Kg4 {[%clk
0:00:17.5]} 57. Rf1 {[%clk 0:00:01.7]} 57... Kg3 {[%clk 0:00:15.3]} 58. a7
{[%clk 0:00:02.1]} 58... Ne2# {[%clk 0:00:15.7]} 0-1

[Event "*** SCC Grand Prix: Titled Tuesday Blitz"]
[Site "Chess.com"]
[Date "2020.06.23"]
[Round "10"]
[White "dpopadic"]
[Black "ElviraBerend"]
[Result "1-0"]
[WhiteElo "2363"]
[BlackElo "2470"]
[TimeControl "180+1"]
[EndTime "11:58:15 PDT"]
[Termination "dpopadic won by resignation"]

1. e4 {[%clk 0:03:00.9]} 1... e5 {[%clk 0:02:59.1]} 2. Nf3 {[%clk 0:03:00.2]}
2... Nc6 {[%clk 0:02:59.1]} 3. Bb5 {[%clk 0:03:00]} 3... Nf6 {[%clk 0:02:58.9]}
4. d3 {[%clk 0:02:58]} 4... d6 {[%clk 0:02:58.2]} 5. c3 {[%clk 0:02:57.2]} 5...
Be7 {[%clk 0:02:58.3]} 6. O-O {[%clk 0:02:57.3]} 6... O-O {[%clk 0:02:58.2]} 7.
Re1 {[%clk 0:02:57.1]} 7... a6 {[%clk 0:02:58.4]} 8. Ba4 {[%clk 0:02:56.7]} 8...
b5 {[%clk 0:02:58.7]} 9. Bc2 {[%clk 0:02:55.8]} 9... Bb7 {[%clk 0:02:58.9]} 10.
Nbd2 {[%clk 0:02:55.7]} 10... Re8 {[%clk 0:02:58.7]} 11. Nf1 {[%clk 0:02:55.6]}
11... Bf8 {[%clk 0:02:58.9]} 12. h3 {[%clk 0:02:55.9]} 12... g6 {[%clk
0:02:59.1]} 13. Ng3 {[%clk 0:02:55.6]} 13... Bg7 {[%clk 0:02:59.3]} 14. Be3
{[%clk 0:02:55.7]} 14... d5 {[%clk 0:02:53.6]} 15. Qc1 {[%clk 0:02:55.1]} 15...
a5 {[%clk 0:02:44.3]} 16. Bh6 {[%clk 0:02:54.1]} 16... Bh8 {[%clk 0:02:41.3]}
17. a4 {[%clk 0:02:37.4]} 17... b4 {[%clk 0:02:40.5]} 18. Bb3 {[%clk 0:02:36.9]}
18... bxc3 {[%clk 0:02:25.1]} 19. bxc3 {[%clk 0:02:36.2]} 19... Rb8 {[%clk
0:02:23.3]} 20. Rb1 {[%clk 0:02:35.3]} 20... Ba6 {[%clk 0:02:21.3]} 21. Rd1
{[%clk 0:02:22.5]} 21... Qd6 {[%clk 0:02:18.4]} 22. Bg5 {[%clk 0:02:09.2]} 22...
Bg7 {[%clk 0:02:11.7]} 23. Bxf6 {[%clk 0:02:04.8]} 23... Bxf6 {[%clk 0:02:07.1]}
24. Bxd5 {[%clk 0:02:04.8]} 24... Ne7 {[%clk 0:01:59.7]} 25. Ba2 {[%clk
0:01:46.1]} 25... Red8 {[%clk 0:01:55.6]} 26. d4 {[%clk 0:01:35.4]} 26... exd4
{[%clk 0:01:54.9]} 27. cxd4 {[%clk 0:01:34.3]} 27... Bg7 {[%clk 0:01:54.1]} 28.
Ng5 {[%clk 0:01:25.5]} 28... Rxb1 {[%clk 0:01:44.5]} 29. Qxb1 {[%clk 0:01:18]}
29... Rf8 {[%clk 0:01:42.9]} 30. Qb3 {[%clk 0:01:14.4]} 30... Qf6 {[%clk
0:01:27.1]} 31. h4 {[%clk 0:01:01.9]} 31... h6 {[%clk 0:01:22.6]} 32. e5 {[%clk
0:00:56.1]} 32... Qf4 {[%clk 0:01:21.7]} 33. Nxf7 {[%clk 0:00:47.4]} 33... Kh7
{[%clk 0:01:17.4]} 34. Qe3 {[%clk 0:00:37.4]} 34... Qg4 {[%clk 0:01:09.5]} 35.
Rc1 {[%clk 0:00:36.1]} 35... c6 {[%clk 0:01:06.3]} 36. h5 {[%clk 0:00:26.6]}
36... Nd5 {[%clk 0:00:37.9]} 37. Bxd5 {[%clk 0:00:22.1]} 37... cxd5 {[%clk
0:00:38]} 38. hxg6+ {[%clk 0:00:21.8]} 38... Qxg6 {[%clk 0:00:37.5]} 39. Nd6
{[%clk 0:00:21.5]} 39... h5 {[%clk 0:00:36.1]} 40. Rc6 {[%clk 0:00:16.3]} 40...
Bd3 {[%clk 0:00:30.5]} 41. e6 {[%clk 0:00:10.5]} 41... Bh6 {[%clk 0:00:28.3]}
42. Qe1 {[%clk 0:00:09.4]} 42... h4 {[%clk 0:00:27.8]} 43. Nf1 {[%clk
0:00:08.5]} 43... h3 {[%clk 0:00:27]} 44. Ng3 {[%clk 0:00:06.3]} 44... hxg2
{[%clk 0:00:20.8]} 45. Kxg2 {[%clk 0:00:06.5]} 45... Be4+ {[%clk 0:00:19.8]} 46.
Nxe4 {[%clk 0:00:05.6]} 46... dxe4 {[%clk 0:00:19]} 47. Qxe4 {[%clk 0:00:05.4]}
47... Qxe4+ {[%clk 0:00:17.4]} 48. Nxe4 {[%clk 0:00:05.5]} 48... Bf4 {[%clk
0:00:16.6]} 49. d5 {[%clk 0:00:05]} 49... Kg7 {[%clk 0:00:15.4]} 50. Ng3 {[%clk
0:00:04.6]} 50... Kf6 {[%clk 0:00:14.4]} 51. Rc5 {[%clk 0:00:04]} 51... Ke5
{[%clk 0:00:13.1]} 52. Rxa5 {[%clk 0:00:03.9]} 52... Kd6 {[%clk 0:00:12.6]} 53.
Rb5 {[%clk 0:00:03.5]} 53... Be5 {[%clk 0:00:11.6]} 54. Ne4+ {[%clk 0:00:03.2]}
54... Kc7 {[%clk 0:00:11.3]} 55. Rc5+ {[%clk 0:00:02.1]} 55... Kb7 {[%clk
0:00:10.6]} 56. Rc6 {[%clk 0:00:02.4]} 56... Rf4 {[%clk 0:00:10.1]} 57. Nc5+
{[%clk 0:00:02.8]} 57... Ka7 {[%clk 0:00:08.9]} 58. e7 {[%clk 0:00:03]} 1-0

[Event "*** SCC Grand Prix: Titled Tuesday Blitz"]
[Site "Chess.com"]
[Date "2020.06.23"]
[Round "10"]
[White "alenee"]
[Black "AndreyNeves"]
[Result "1/2-1/2"]
[WhiteElo "2354"]
[BlackElo "2211"]
[TimeControl "180+1"]
[EndTime "11:58:19 PDT"]
[Termination "Game drawn by stalemate"]

1. e4 {[%clk 0:03:00.9]} 1... e5 {[%clk 0:02:59.5]} 2. Nf3 {[%clk 0:03:00.3]}
2... Nc6 {[%clk 0:03:00]} 3. Bb5 {[%clk 0:02:59.9]} 3... a6 {[%clk 0:02:59.7]}
4. Ba4 {[%clk 0:03:00.4]} 4... Nf6 {[%clk 0:02:59.2]} 5. O-O {[%clk 0:03:00.9]}
5... b5 {[%clk 0:02:59.1]} 6. Bb3 {[%clk 0:03:00.2]} 6... Bb7 {[%clk 0:02:59.2]}
7. Re1 {[%clk 0:02:58.7]} 7... Bc5 {[%clk 0:02:58.7]} 8. c3 {[%clk 0:02:59.1]}
8... d6 {[%clk 0:02:55.4]} 9. a4 {[%clk 0:02:59.1]} 9... O-O {[%clk 0:02:52.5]}
10. d3 {[%clk 0:02:56]} 10... Bb6 {[%clk 0:02:45.6]} 11. Nbd2 {[%clk 0:02:47.4]}
11... Ne7 {[%clk 0:02:45.4]} 12. Nf1 {[%clk 0:02:45.8]} 12... Ng6 {[%clk
0:02:45.3]} 13. Ng3 {[%clk 0:02:44.1]} 13... c6 {[%clk 0:02:15.4]} 14. Nf5
{[%clk 0:02:30.5]} 14... h6 {[%clk 0:01:59.8]} 15. axb5 {[%clk 0:02:28.4]} 15...
axb5 {[%clk 0:01:50.4]} 16. Rxa8 {[%clk 0:02:28.6]} 16... Bxa8 {[%clk 0:01:51]}
17. Be3 {[%clk 0:02:08.8]} 17... Bxe3 {[%clk 0:01:49]} 18. fxe3 {[%clk 0:02:09]}
18... Re8 {[%clk 0:01:42.1]} 19. Rf1 {[%clk 0:02:06.6]} 19... d5 {[%clk
0:01:40.1]} 20. Nd2 {[%clk 0:01:52.7]} 20... c5 {[%clk 0:01:28.5]} 21. exd5
{[%clk 0:01:45.9]} 21... Bxd5 {[%clk 0:01:27.3]} 22. e4 {[%clk 0:01:30.8]} 22...
Bxb3 {[%clk 0:01:20.8]} 23. Nxb3 {[%clk 0:01:30.6]} 23... c4 {[%clk 0:01:15]}
24. dxc4 {[%clk 0:01:30.5]} 24... bxc4 {[%clk 0:01:13.6]} 25. Qxd8 {[%clk
0:01:25.2]} 25... Rxd8 {[%clk 0:01:12.3]} 26. Na5 {[%clk 0:01:25.1]} 26... Nxe4
{[%clk 0:01:01.9]} 27. Nxc4 {[%clk 0:01:19.7]} 27... f6 {[%clk 0:00:54]} 28. g3
{[%clk 0:01:05.2]} 28... Rc8 {[%clk 0:00:53.7]} 29. Ncd6 {[%clk 0:00:58.4]}
29... Nxd6 {[%clk 0:00:51.6]} 30. Nxd6 {[%clk 0:00:57.4]} 30... Rd8 {[%clk
0:00:46.4]} 31. Ne4 {[%clk 0:00:56.5]} 31... Ne7 {[%clk 0:00:40.1]} 32. b4
{[%clk 0:00:53.8]} 32... Rd3 {[%clk 0:00:33.9]} 33. Rc1 {[%clk 0:00:44.6]} 33...
Nd5 {[%clk 0:00:30.6]} 34. b5 {[%clk 0:00:44.3]} 34... Re3 {[%clk 0:00:28.9]}
35. c4 {[%clk 0:00:38.3]} 35... Rxe4 {[%clk 0:00:13.3]} 36. cxd5 {[%clk
0:00:37.6]} 36... Rb4 {[%clk 0:00:09.9]} 37. Rc8+ {[%clk 0:00:38.1]} 37... Kf7
{[%clk 0:00:09.4]} 38. Rc7+ {[%clk 0:00:38.5]} 38... Ke8 {[%clk 0:00:08.4]} 39.
Rxg7 {[%clk 0:00:28]} 39... Rxb5 {[%clk 0:00:07.6]} 40. d6 {[%clk 0:00:27.9]}
40... f5 {[%clk 0:00:06.1]} 41. Rg6 {[%clk 0:00:21.2]} 41... Rd5 {[%clk
0:00:04.9]} 42. Rxh6 {[%clk 0:00:20.4]} 42... Kd7 {[%clk 0:00:05]} 43. Rf6
{[%clk 0:00:19.9]} 43... e4 {[%clk 0:00:05]} 44. Kf2 {[%clk 0:00:18.9]} 44...
Rd2+ {[%clk 0:00:04.4]} 45. Ke3 {[%clk 0:00:18.9]} 45... Rxh2 {[%clk 0:00:04.2]}
46. Rxf5 {[%clk 0:00:19.2]} 46... Kxd6 {[%clk 0:00:04.5]} 47. Kxe4 {[%clk
0:00:19]} 47... Ke6 {[%clk 0:00:04.8]} 48. Rf3 {[%clk 0:00:16.9]} 48... Rh5
{[%clk 0:00:04.1]} 49. g4 {[%clk 0:00:16.7]} 49... Rg5 {[%clk 0:00:04.3]} 50.
Kf4 {[%clk 0:00:15.9]} 50... Rg8 {[%clk 0:00:04.4]} 51. Kg3 {[%clk 0:00:16.2]}
51... Rg7 {[%clk 0:00:03.7]} 52. Rf4 {[%clk 0:00:16.3]} 52... Rf7 {[%clk
0:00:03.7]} 53. g5 {[%clk 0:00:15.5]} 53... Rxf4 {[%clk 0:00:03.2]} 54. Kxf4
{[%clk 0:00:16.1]} 54... Kf7 {[%clk 0:00:04.1]} 55. Kf5 {[%clk 0:00:16.6]} 55...
Kg7 {[%clk 0:00:05]} 56. g6 {[%clk 0:00:17]} 56... Kg8 {[%clk 0:00:05.5]} 57.
Kg5 {[%clk 0:00:17.7]} 57... Kg7 {[%clk 0:00:05.7]} 58. Kh5 {[%clk 0:00:17.4]}
58... Kg8 {[%clk 0:00:05.9]} 59. Kh6 {[%clk 0:00:17.3]} 59... Kh8 {[%clk
0:00:05.8]} 60. g7+ {[%clk 0:00:17.9]} 60... Kg8 {[%clk 0:00:06]} 61. Kg6 {[%clk
0:00:17.4]} 1/2-1/2

[Event "*** SCC Grand Prix: Titled Tuesday Blitz"]
[Site "Chess.com"]
[Date "2020.06.23"]
[Round "10"]
[White "ARTHURMOTIVATOR"]
[Black "MuhittinBuker"]
[Result "1-0"]
[WhiteElo "2333"]
[BlackElo "1933"]
[TimeControl "180+1"]
[EndTime "11:58:20 PDT"]
[Termination "ARTHURMOTIVATOR won on time"]

1. e4 {[%clk 0:03:00.9]} 1... e5 {[%clk 0:02:59.3]} 2. Nf3 {[%clk 0:02:58]} 2...
Nc6 {[%clk 0:02:59.2]} 3. Bc4 {[%clk 0:02:55.9]} 3... Nf6 {[%clk 0:02:58.7]} 4.
d3 {[%clk 0:02:49.8]} 4... Bc5 {[%clk 0:02:56.7]} 5. c3 {[%clk 0:02:47.2]} 5...
d6 {[%clk 0:02:55.9]} 6. Bb3 {[%clk 0:02:40.4]} 6... a6 {[%clk 0:02:56]} 7. Nbd2
{[%clk 0:02:37.2]} 7... O-O {[%clk 0:02:54.3]} 8. O-O {[%clk 0:02:31.9]} 8... d5
{[%clk 0:02:52.5]} 9. Qe2 {[%clk 0:02:30.8]} 9... dxe4 {[%clk 0:02:50.9]} 10.
dxe4 {[%clk 0:02:29.4]} 10... Qe7 {[%clk 0:02:47.8]} 11. Re1 {[%clk 0:02:25.2]}
11... Be6 {[%clk 0:02:45.7]} 12. h3 {[%clk 0:02:18.8]} 12... b5 {[%clk
0:02:42.7]} 13. Nf1 {[%clk 0:02:11.8]} 13... h6 {[%clk 0:02:29.4]} 14. Ng3
{[%clk 0:02:10.2]} 14... Rfe8 {[%clk 0:02:24.4]} 15. Nh4 {[%clk 0:02:02.4]}
15... Nd7 {[%clk 0:02:05.4]} 16. Nhf5 {[%clk 0:01:57.1]} 16... Qf6 {[%clk
0:01:59.3]} 17. Nh5 {[%clk 0:01:26.9]} 17... Qg6 {[%clk 0:01:58.4]} 18. Nhxg7
{[%clk 0:01:23.5]} 18... Bxf5 {[%clk 0:01:53.6]} 19. Nxf5 {[%clk 0:01:20.1]}
19... Bf8 {[%clk 0:01:50.4]} 20. Be3 {[%clk 0:00:45.5]} 20... Rad8 {[%clk
0:01:47]} 21. Rad1 {[%clk 0:00:44.3]} 21... Na5 {[%clk 0:01:26.5]} 22. Bc2
{[%clk 0:00:40.8]} 22... Nc4 {[%clk 0:01:25.9]} 23. Bc1 {[%clk 0:00:39.9]} 23...
Nf6 {[%clk 0:01:21.6]} 24. b3 {[%clk 0:00:38.1]} 24... Nd6 {[%clk 0:01:19.5]}
25. Nxd6 {[%clk 0:00:29.8]} 25... Bxd6 {[%clk 0:01:17]} 26. Rd3 {[%clk
0:00:28.6]} 26... Kh7 {[%clk 0:01:15.4]} 27. Rg3 {[%clk 0:00:27.8]} 27... Qh5
{[%clk 0:01:07.7]} 28. Qxh5 {[%clk 0:00:23.4]} 28... Nxh5 {[%clk 0:01:07.3]} 29.
Rf3 {[%clk 0:00:23.7]} 29... Rf8 {[%clk 0:00:57.4]} 30. Rd1 {[%clk 0:00:23.4]}
30... Kg7 {[%clk 0:00:50.4]} 31. g3 {[%clk 0:00:23.2]} 31... Nf6 {[%clk
0:00:48.9]} 32. Kg2 {[%clk 0:00:23.1]} 32... Ng8 {[%clk 0:00:40.1]} 33. h4
{[%clk 0:00:20.9]} 33... Nf6 {[%clk 0:00:37.9]} 34. Bxh6+ {[%clk 0:00:20.1]}
34... Kxh6 {[%clk 0:00:35.3]} 35. Rxf6+ {[%clk 0:00:20.1]} 35... Kg7 {[%clk
0:00:35.3]} 36. Rf5 {[%clk 0:00:19.2]} 36... f6 {[%clk 0:00:31.6]} 37. g4 {[%clk
0:00:16.7]} 37... Bc5 {[%clk 0:00:29.9]} 38. Rd5 {[%clk 0:00:12.1]} 38... Rxd5
{[%clk 0:00:27.2]} 39. exd5 {[%clk 0:00:11.3]} 39... b4 {[%clk 0:00:26.9]} 40.
c4 {[%clk 0:00:10.6]} 40... Bd4 {[%clk 0:00:20.3]} 41. Be4 {[%clk 0:00:08.8]}
41... Rh8 {[%clk 0:00:18.9]} 42. Kg3 {[%clk 0:00:08.2]} 42... Rh6 {[%clk
0:00:16.1]} 43. g5 {[%clk 0:00:08.4]} 43... fxg5 {[%clk 0:00:15.5]} 44. Rxg5+
{[%clk 0:00:08.6]} 44... Kf8 {[%clk 0:00:12.7]} 45. Kg4 {[%clk 0:00:08.8]} 45...
Rb6 {[%clk 0:00:11.6]} 46. Rf5+ {[%clk 0:00:08]} 46... Kg7 {[%clk 0:00:10.8]}
47. Rg5+ {[%clk 0:00:08.3]} 47... Kf8 {[%clk 0:00:10.5]} 48. h5 {[%clk
0:00:08.4]} 48... a5 {[%clk 0:00:10.3]} 49. Rf5+ {[%clk 0:00:08.3]} 49... Kg7
{[%clk 0:00:09.8]} 50. Rg5+ {[%clk 0:00:08.5]} 50... Kh6 {[%clk 0:00:10]} 51.
Rg8 {[%clk 0:00:07.5]} 51... Rd6 {[%clk 0:00:07.4]} 52. Rh8+ {[%clk 0:00:07.6]}
52... Kg7 {[%clk 0:00:06.8]} 53. Rh7+ {[%clk 0:00:07.8]} 53... Kg8 {[%clk
0:00:03.7]} 54. Rxc7 {[%clk 0:00:08.7]} 54... Ra6 {[%clk 0:00:02.9]} 55. Bg6
{[%clk 0:00:08.5]} 55... a4 {[%clk 0:00:02.9]} 56. Kf5 {[%clk 0:00:08.1]} 56...
axb3 {[%clk 0:00:02.7]} 57. axb3 {[%clk 0:00:08.1]} 57... Bxf2 {[%clk
0:00:01.3]} 58. h6 {[%clk 0:00:07.9]} 1-0

[Event "*** SCC Grand Prix: Titled Tuesday Blitz"]
[Site "Chess.com"]
[Date "2020.06.23"]
[Round "10"]
[White "Lector118"]
[Black "vpsetter"]
[Result "1/2-1/2"]
[WhiteElo "2480"]
[BlackElo "2604"]
[TimeControl "180+1"]
[EndTime "11:58:25 PDT"]
[Termination "Game drawn - insufficient material"]

1. d4 {[%clk 0:03:00.9]} 1... Nf6 {[%clk 0:02:58.3]} 2. c4 {[%clk 0:03:01.1]}
2... e6 {[%clk 0:02:57.5]} 3. g3 {[%clk 0:03:00.5]} 3... d5 {[%clk 0:02:52]} 4.
Bg2 {[%clk 0:03:00.2]} 4... Be7 {[%clk 0:02:49.9]} 5. Nf3 {[%clk 0:03:00.5]}
5... O-O {[%clk 0:02:49.9]} 6. O-O {[%clk 0:03:01.1]} 6... c6 {[%clk 0:02:49.1]}
7. Nc3 {[%clk 0:03:00]} 7... b6 {[%clk 0:02:42.9]} 8. Qd3 {[%clk 0:02:59.7]}
8... Bb7 {[%clk 0:02:40.5]} 9. Rd1 {[%clk 0:02:58.3]} 9... Nbd7 {[%clk
0:02:38.1]} 10. e4 {[%clk 0:02:58.2]} 10... dxe4 {[%clk 0:02:19.5]} 11. Nxe4
{[%clk 0:02:59.1]} 11... c5 {[%clk 0:02:10.3]} 12. Nxf6+ {[%clk 0:02:21.2]}
12... Nxf6 {[%clk 0:02:09.5]} 13. Ne5 {[%clk 0:02:18.5]} 13... Bxg2 {[%clk
0:02:08.4]} 14. Kxg2 {[%clk 0:02:19.4]} 14... Qc7 {[%clk 0:02:02.4]} 15. Bf4
{[%clk 0:02:11.6]} 15... cxd4 {[%clk 0:01:42.9]} 16. Qxd4 {[%clk 0:02:09.5]}
16... Rfd8 {[%clk 0:00:14.6]} 17. Qe3 {[%clk 0:02:04]} 17... Qb7+ {[%clk
0:00:11.1]} 18. Qf3 {[%clk 0:02:00.6]} 18... Qxf3+ {[%clk 0:00:10.6]} 19. Kxf3
{[%clk 0:02:01.5]} 19... Rac8 {[%clk 0:00:09.7]} 20. Rxd8+ {[%clk 0:01:57.7]}
20... Bxd8 {[%clk 0:00:09.8]} 21. Rd1 {[%clk 0:01:56.7]} 21... Be7 {[%clk
0:00:08.3]} 22. b3 {[%clk 0:01:54.7]} 22... Kf8 {[%clk 0:00:08.6]} 23. g4 {[%clk
0:01:45.4]} 23... Ke8 {[%clk 0:00:09]} 24. h4 {[%clk 0:01:42.9]} 24... h6 {[%clk
0:00:07.6]} 25. h5 {[%clk 0:01:37.2]} 25... a6 {[%clk 0:00:07.1]} 26. a4 {[%clk
0:01:35.8]} 26... Rd8 {[%clk 0:00:06.1]} 27. Rxd8+ {[%clk 0:01:29.4]} 27... Bxd8
{[%clk 0:00:06.4]} 28. Nc6 {[%clk 0:01:29.8]} 28... Nd7 {[%clk 0:00:06.7]} 29.
b4 {[%clk 0:01:25]} 29... a5 {[%clk 0:00:04.4]} 30. bxa5 {[%clk 0:01:20.8]}
30... bxa5 {[%clk 0:00:04.5]} 31. Bd2 {[%clk 0:00:47.4]} 31... Bc7 {[%clk
0:00:05]} 32. Ke4 {[%clk 0:00:35.1]} 32... Nc5+ {[%clk 0:00:04.7]} 33. Kd4
{[%clk 0:00:35.5]} 33... Nxa4 {[%clk 0:00:04.5]} 34. Bxa5 {[%clk 0:00:35.2]}
34... Bxa5 {[%clk 0:00:04.7]} 35. Nxa5 {[%clk 0:00:36.1]} 35... Kd7 {[%clk
0:00:05.3]} 36. c5 {[%clk 0:00:34.9]} 36... Nb2 {[%clk 0:00:04.8]} 37. f3 {[%clk
0:00:32.4]} 37... Nd1 {[%clk 0:00:05.1]} 38. Nc4 {[%clk 0:00:31.5]} 38... f6
{[%clk 0:00:05]} 39. Nd6 {[%clk 0:00:19.9]} 39... Nf2 {[%clk 0:00:05.1]} 40. Ke3
{[%clk 0:00:18.5]} 40... Nh3 {[%clk 0:00:05]} 41. f4 {[%clk 0:00:14]} 41... Kc6
{[%clk 0:00:04]} 42. Ne8 {[%clk 0:00:13.8]} 42... Kxc5 {[%clk 0:00:04.5]} 43.
Nxg7 {[%clk 0:00:14.5]} 43... Kd6 {[%clk 0:00:05]} 44. Kf3 {[%clk 0:00:12.3]}
44... Ke7 {[%clk 0:00:04.8]} 45. Kg3 {[%clk 0:00:12.5]} 45... Ng1 {[%clk
0:00:04.9]} 46. g5 {[%clk 0:00:11.1]} 46... fxg5 {[%clk 0:00:03.4]} 47. fxg5
{[%clk 0:00:10.5]} 47... hxg5 {[%clk 0:00:03.6]} 48. Kg4 {[%clk 0:00:08.7]}
48... Kf7 {[%clk 0:00:03.5]} 49. h6 {[%clk 0:00:08.3]} 49... Kg6 {[%clk
0:00:02.7]} 50. Nxe6 {[%clk 0:00:08.3]} 50... Kxh6 {[%clk 0:00:03.3]} 51. Nxg5
{[%clk 0:00:08.9]} 1/2-1/2